bitfinex/quotes_ETHUSD_20251128
["timestamp","ask_amount","ask_price","bid_price","bid_amount"]
[1764341208645,0.002,3057.4,3057.2,4.80005774]
[1764341209021,0.002,3057.4,3057.1,3.27097009]
[1764341209222,0.002,3057.4,3057.3,0.405504]
[1764341209749,0.002,3057.4,3057.3,0.886504]
[1764341209972,0.002,3057.4,3057.3,0.481]
[1764341210245,0.002,3057.4,3057.1,3.27097009]
[1764341210423,0.002,3057.4,3056.7,0.72559411]
[1764341210424,0.102,3057.4,3056.5,0.481]
[1764341210622,0.002,3057.4,3057.0,0.1868]
[1764341211243,0.002,3057.4,3057.1,0.481]
[1764341211809,0.002,3057.4,3057.1,0.405504]
[1764341212013,0.002,3057.4,3057.2,0.481]
[1764341212243,0.002,3057.4,3057.3,3.2708599]
[1764341212445,0.002,3057.4,3057.3,4.0136933]
[1764341212647,0.002,3057.4,3057.3,4.9001973]
[1764341213067,0.002,3057.8,3057.4,0.405504]
[1764341213217,0.002,3057.8,3057.7,1.13109811]
[1764341213414,0.002,3057.8,3057.7,1.34509811]
[1764341213728,0.002,3057.8,3057.7,2.54316033]
[1764341214043,0.13310233,3059.3,3057.7,2.54316033]
[1764341214244,0.102,3059.3,3057.9,1.13109811]
[1764341214450,0.03310233,3059.3,3057.9,1.13109811]
[1764341214651,0.002,3059.3,3058.1,6.23102813]
[1764341214852,0.002,3059.3,3058.3,0.405504]
[1764341215458,0.002,3059.3,3058.4,0.481]
[1764341215660,0.002,3059.3,3058.5,0.405504]
[1764341216026,0.002,3059.3,3058.4,0.481]
[1764341216227,0.002,3059.3,3058.2,0.4008]
[1764341216228,0.1,3059.2,3058.2,0.4008]
[1764341216445,0.03110233,3059.1,3058.3,6.5395808]
[1764341216756,0.1,3059.2,3058.4,0.405504]
[1764341217347,0.002,3059.3,3058.6,0.405504]
[1764341217835,0.002,3059.3,3058.5,0.481]
[1764341218158,0.102,3059.3,3058.6,0.405504]
[1764341218365,0.002,3059.3,3058.3,1.17503808]
[1764341218667,0.002,3059.3,3058.5,0.405504]
[1764341219626,0.002,3059.3,3058.5,0.886504]
[1764341219832,0.1,3059.2,3058.5,0.886504]
[1764341220337,0.1,3059.2,3058.6,3.26946969]
[1764341220535,0.03110233,3059.1,3058.3,3.67524158]
[1764341220742,0.002,3059.3,3058.3,3.67524158]
[1764341220743,0.1,3058.9,3058.3,10.21482238]
[1764341221077,0.50790233,3059.3,3058.6,5.82552413]
[1764341221078,0.002,3059.3,3058.6,5.82552413]
[1764341221375,0.002,3059.3,3058.4,1.20659411]
[1764341221376,0.002,3059.3,3059.2,1.31789811]
[1764341221529,0.002,3059.3,3059.2,0.6678]
[1764341221729,0.002,3059.3,3059.2,1.073304]
[1764341221938,0.002,3059.3,3059.2,6.89882813]
[1764341222143,0.002,3059.7,3059.3,1.13109811]
[1764341222351,0.002,3059.7,3059.5,1.13109811]
[1764341222531,0.03310233,3062.4,3059.5,1.13109811]
[1764341222730,0.4748,3061.6,3059.7,0.405504]
[1764341223033,0.13110233,3061.5,3059.7,0.405504]
[1764341223237,0.1,3061.2,3059.9,0.405504]
[1764341223437,0.1,3061.4,3059.9,0.405504]
[1764341223730,0.1,3060.7,3059.9,1.100504]
[1764341223976,0.1,3060.9,3059.9,1.100504]
[1764341224167,0.1,3060.9,3059.7,0.214]
[1764341224460,0.1934,3060.9,3059.9,0.405504]
[1764341224659,0.03110233,3061.1,3059.9,1.44791064]
[1764341224961,0.03110233,3061.1,3060.1,0.405504]
[1764341225161,0.03030233,3061.1,3060.1,0.405504]
[1764341225344,0.03030233,3061.1,3060.2,0.1868]
[1764341225542,0.03030233,3061.1,3060.1,0.592304]
[1764341225543,0.1,3060.9,3060.1,0.592304]
[1764341225954,0.13030233,3061.1,3060.1,0.592304]
[1764341226365,0.13030233,3061.1,3059.6,0.481]
[1764341226366,0.50510233,3061.1,3059.6,0.481]
[1764341226573,0.1,3060.8,3059.8,0.214]
[1764341226768,0.1,3060.8,3059.7,0.72559411]
[1764341226769,0.02950233,3060.7,3059.7,0.72559411]
[1764341226966,0.02950233,3060.7,3059.3,6.5374432]
[1764341226967,0.1,3060.2,3059.3,6.5374432]
[1764341227277,0.1,3060.2,3059.4,0.03268614]
[1764341227582,0.13030233,3061.0,3060.1,0.1868]
[1764341227874,0.03030233,3061.0,3060.1,0.1868]
[1764341228495,0.1934,3061.2,3060.3,0.405504]
[1764341228853,0.22370233,3061.2,3060.1,0.1868]
[1764341229172,0.1,3061.0,3060.1,6.53573412]
[1764341229374,0.03030233,3060.9,3060.1,6.72253412]
[1764341229678,0.13030233,3061.0,3060.1,9.99040118]
[1764341229880,0.1934,3061.2,3060.2,0.405504]
[1764341230088,0.1,3061.4,3060.2,1.61209811]
[1764341230450,0.1934,3062.0,3060.4,13.47569088]
[1764341230651,0.1,3061.6,3060.5,0.214]
[1764341230967,0.03030233,3061.8,3060.6,0.405504]
[1764341231278,0.03030233,3061.8,3060.8,0.405504]
[1764341231279,0.1,3061.8,3060.8,0.405504]
[1764341231647,0.4929,3062.1,3060.9,0.4519]
[1764341231846,0.03030233,3062.0,3061.1,0.405504]
[1764341232048,0.03030233,3062.0,3060.5,0.72559411]
[1764341232377,0.1,3061.4,3060.7,0.405504]
[1764341232678,0.1,3061.6,3060.7,1.13109811]
[1764341233346,0.13030233,3061.6,3060.7,1.13109811]
[1764341233578,0.002,3061.7,3060.9,0.405504]
[1764341233875,0.002,3061.7,3061.0,1.39149411]
[1764341234172,0.002,3061.7,3061.1,0.405504]
[1764341234388,0.002,3061.6,3061.2,9.8000784]
[1764341235592,0.002,3061.6,3061.3,0.857404]
[1764341235793,0.002,3061.6,3061.3,1.58299811]
[1764341235959,0.002,3061.6,3061.5,0.405504]
[1764341236161,0.002,3061.6,3061.5,0.857404]
[1764341236590,0.002,3062.3,3061.6,0.4519]
[1764341236793,0.002,3062.3,3061.7,1.81288616]
[1764341236966,0.002,3062.3,3061.8,0.215]
[1764341237383,0.002,3062.3,3061.9,0.4519]
[1764341237583,0.002,3062.3,3062.0,0.405504]
[1764341237995,0.002,3063.0,3062.2,6.90662506]
[1764341238297,0.002,3063.0,3062.4,0.405504]
[1764341238461,0.002,3063.0,3062.5,9.79591836]
[1764341238901,0.002,3063.0,3062.5,6.53061224]
[1764341239110,0.002,3063.0,3062.5,9.79591836]
[1764341239275,0.002,3063.0,3062.5,11.61910774]
[1764341239477,0.002,3063.0,3062.0,6.53167864]
[1764341239478,0.6555,3062.9,3062.0,6.53167864]
[1764341239804,0.1887,3062.9,3062.0,9.79751796]
[1764341240095,0.1887,3062.9,3062.1,0.405504]
[1764341240503,0.49710233,3062.8,3061.8,3.26596634]
[1764341240800,0.1,3062.4,3061.8,6.53201898]
[1764341241003,0.03030233,3062.3,3061.8,6.53201898]
[1764341241168,0.1,3062.5,3061.9,0.405504]
[1764341241367,0.13030233,3062.4,3061.9,0.405504]
[1764341241587,0.42899301,3062.5,3061.9,0.405504]
[1764341241781,0.1887,3062.9,3061.9,2.82046051]
[1764341241989,0.21900233,3062.9,3061.9,2.82046051]
[1764341242291,0.1887,3062.9,3061.9,2.82046051]
[1764341242502,0.002,3063.0,3062.3,1.13109811]
[1764341242798,0.002,3063.0,3062.2,13.06250408]
[1764341242799,0.002,3063.0,3062.7,1.13109811]
[1764341242964,0.002,3063.0,3062.9,0.405504]
[1764341243367,0.002,3063.0,3062.9,0.214]
[1764341244082,0.002,3063.0,3062.6,0.405504]
[1764341244594,0.002,3063.0,3062.8,0.405504]
[1764341244799,0.1887,3062.9,3062.7,0.214]
[1764341245094,0.1887,3062.9,3062.5,6.53061224]
[1764341245294,0.4668,3062.8,3062.5,6.53061224]
[1764341245461,0.4668,3062.8,3062.5,3.26530612]
[1764341245462,0.5668,3062.8,3062.5,3.26530612]
[1764341245668,0.5668,3062.8,3062.5,6.53061224]
[1764341245868,0.32982528,3062.7,3061.2,9.8000784]
[1764341246063,0.29952295,3062.7,3061.3,7.20278692]
[1764341246264,0.39952295,3062.7,3061.5,0.405504]
[1764341246470,0.39952295,3062.7,3061.9,1.13109811]
[1764341246666,0.42982528,3062.8,3062.1,0.405504]
[1764341246871,0.42982528,3062.8,3062.2,0.03265626]
[1764341247098,0.32982528,3062.8,3062.3,0.405504]
[1764341247270,0.32982528,3062.8,3061.9,0.93959411]
[1764341247271,0.32982528,3062.7,3062.0,0.405504]
[1764341247474,0.29952295,3062.6,3062.1,0.03265732]
[1764341247702,0.002,3063.0,3062.1,0.03265732]
[1764341247703,0.29952295,3062.7,3062.1,0.03265732]
[1764341247898,0.4688,3063.0,3062.1,0.03265732]
[1764341247899,0.29952295,3062.6,3062.1,0.03265732]
[1764341248116,0.9906515,3062.9,3062.1,0.03265732]
[1764341248299,0.13230233,3063.0,3062.1,0.03265732]
[1764341248300,0.002,3063.0,3062.6,1.13109811]
[1764341248604,0.002,3063.0,3062.9,4.39597779]
[1764341248766,0.002,3063.0,3062.9,4.85097779]
[1764341249217,0.002,3064.1,3062.9,4.39597779]
[1764341249383,0.99273482,3065.4,3065.1,0.405504]
[1764341249583,0.1887,3065.9,3065.0,0.16987447]
[1764341249812,0.4668,3065.8,3065.2,0.405504]
[1764341250110,0.4668,3065.8,3065.0,0.16987447]
[1764341250111,0.1,3065.3,3065.0,0.16987447]
[1764341250608,0.1887,3065.9,3065.0,0.16987447]
[1764341250609,0.1,3065.1,3065.0,0.16987447]
[1764341251004,0.4668,3065.1,3065.0,3.43251721]
[1764341251205,0.4037,3065.9,3065.0,3.43251721]
[1764341251206,0.4668,3065.5,3065.0,3.43251721]
[1764341251504,0.1,3065.2,3065.0,0.16987447]
[1764341251803,0.1,3065.1,3065.0,0.16987447]
[1764341252175,0.5668,3065.1,3065.0,0.16987447]
[1764341255513,0.4668,3065.1,3063.9,0.405504]
[1764341255808,0.1,3064.7,3063.9,0.405504]
[1764341256711,0.1,3064.7,3064.0,9.79112271]
[1764341257311,0.4688,3065.1,3064.1,0.405504]
[1764341257512,0.002,3065.1,3064.1,1.58609811]
[1764341258423,0.002,3065.1,3064.3,0.405504]
[1764341258601,0.002,3065.1,3064.3,6.52677608]
[1764341258800,0.4668,3065.0,3064.4,0.405504]
[1764341259000,0.002,3065.1,3064.4,0.405504]
[1764341259183,0.002,3065.1,3063.7,6.5280543]
[1764341259184,0.1887,3064.5,3063.7,6.5280543]
[1764341259384,0.1887,3064.5,3063.8,0.0326392]
[1764341259590,0.1,3064.3,3063.7,0.03264027]
[1764341260282,0.4668,3064.2,3063.6,6.52825538]
[1764341260485,0.4668,3064.2,3063.7,0.03264027]
[1764341260785,0.5683,3064.3,3063.4,6.5286936]
[1764341261006,0.4683,3064.3,3062.7,0.4925]
[1764341261194,0.1,3063.7,3062.5,13.06122448]
[1764341261403,0.1,3063.7,3062.6,1.83856245]
[1764341261712,0.1,3063.3,3062.6,1.56006245]
[1764341261919,0.1,3063.3,3062.6,2.28565656]
[1764341262415,0.30051886,3063.5,3062.7,0.52515092]
[1764341262623,0.1,3064.0,3062.8,13.05994512]
[1764341262828,0.1,3064.0,3062.9,1.79666239]
[1764341263160,0.1,3064.0,3062.4,0.1844]
[1764341263161,0.30060616,3064.2,3062.1,0.1874]
[1764341263162,0.1,3063.1,3062.1,0.1874]
[1764341263420,0.1806,3062.9,3062.2,0.03265626]
[1764341263625,0.1806,3062.9,3062.3,0.405504]
[1764341263923,0.1,3063.1,3062.4,0.03265412]
[1764341264513,0.40060616,3063.1,3062.4,0.03265412]
[1764341264826,0.40060616,3063.1,3062.6,6.530399]
[1764341264988,0.40060616,3063.1,3062.7,0.03265092]
[1764341265194,0.30060616,3063.0,3062.7,0.03265092]
[1764341265592,0.76890616,3063.0,3062.7,0.03265092]
[1764341265786,0.30060616,3062.9,3062.2,0.43816026]
[1764341266586,0.1,3062.8,3062.2,6.53125204]
[1764341266817,0.1,3062.5,3062.2,0.03265626]
[1764341267019,10.19144449,3064.2,3062.2,0.03265626]
[1764341267020,0.30106018,3062.7,3062.3,0.4925]
[1764341267319,0.30106018,3063.5,3062.5,0.405504]
[1764341267523,0.30106018,3063.5,3062.7,0.405504]
[1764341267730,0.30106018,3063.5,3062.9,0.405504]
[1764341267894,0.30106018,3063.5,3063.0,0.03264773]
[1764341268088,0.4027,3064.5,3063.0,0.03264773]
[1764341268089,0.30106018,3063.8,3063.1,0.405504]
[1764341268315,0.40106018,3063.7,3063.2,0.03264559]
[1764341268510,0.2806,3063.7,3063.2,0.03264559]
[1764341268745,0.7489,3063.7,3063.0,9.79431927]
[1764341268912,0.30106018,3063.6,3063.0,9.79431927]
[1764341269318,0.30106018,3063.6,3063.0,11.12164547]
[1764341269545,0.86936018,3063.6,3063.0,6.52954618]
[1764341269843,0.30106018,3063.5,3063.1,0.03264666]
[1764341270043,0.40106018,3063.6,3063.2,0.03264559]
[1764341270345,0.1806,3063.7,3063.3,0.03264453]
[1764341270562,0.30106018,3063.8,3063.3,0.03264453]
[1764341270712,0.30106018,3063.7,3063.4,6.5286936]
[1764341270913,0.30106018,3063.8,3063.4,9.7930404]
[1764341271136,0.30106018,3063.9,3063.5,0.0326424]
[1764341271335,0.4683,3064.4,3063.4,10.22333297]
[1764341271336,0.1,3064.2,3063.4,10.22333297]
[1764341271610,0.1806,3063.5,3063.4,6.5286936]
[1764341271953,0.30106018,3063.8,3063.4,9.7930404]
[1764341272160,0.1806,3063.7,3063.4,6.5286936]
[1764341272356,0.30106018,3063.8,3063.5,0.0326424]
[1764341272531,0.1806,3063.9,3063.5,0.0326424]
[1764341272734,0.1806,3063.9,3063.6,3.26413369]
[1764341272966,0.1806,3063.9,3063.5,3.26421004]
[1764341273140,0.1,3063.8,3063.5,6.52845028]
[1764341273342,0.1,3063.8,3063.4,0.03264346]
[1764341273536,0.1,3063.8,3063.2,0.405504]
[1764341273858,0.48166018,3063.9,3063.2,10.19918379]
[1764341274068,0.657,3064.5,3063.4,0.405504]
[1764341274222,0.40065535,3064.4,3063.4,0.405504]
[1764341274567,0.30145535,3064.3,3063.4,0.405504]
[1764341274729,0.30145535,3064.3,3063.6,0.405504]
[1764341275127,0.0992,3064.4,3063.6,0.405504]
[1764341275128,0.30145535,3064.4,3063.6,1.62359811]
[1764341275326,0.30145535,3064.6,3063.8,0.405504]
[1764341275560,0.30145535,3064.5,3063.8,0.405504]
[1764341275735,0.0992,3064.4,3063.8,0.405504]
[1764341276627,0.0992,3064.4,3063.7,0.214]
[1764341276628,0.0992,3064.1,3063.7,0.405504]
[1764341276828,0.30145535,3064.6,3063.9,0.405504]
[1764341277050,0.30145535,3064.6,3063.9,1.79217305]
[1764341278057,0.30145535,3064.5,3063.9,1.79217305]
[1764341278249,0.30145535,3064.6,3063.9,1.79217305]
[1764341278853,0.30145535,3064.6,3064.0,9.79112271]
[1764341279357,0.76975535,3064.6,3064.0,6.52741514]
[1764341279525,0.40065535,3064.5,3064.0,6.52741514]
[1764341279923,0.361,3064.1,3063.8,6.52784124]
[1764341280550,0.1806,3064.7,3063.8,9.79176186]
[1764341280756,0.30184701,3064.6,3063.8,9.79176186]
[1764341281053,0.86934701,3064.5,3063.8,6.52784124]
[1764341281253,0.30184701,3064.4,3063.8,9.82440106]
[1764341281456,0.77014701,3064.6,3063.8,9.79176186]
[1764341281637,0.30184701,3064.5,3063.8,9.79176186]
[1764341281838,0.30184701,3064.4,3063.8,9.79176186]
[1764341282042,0.1806,3064.7,3063.9,0.03263814]
[1764341282043,0.30184701,3064.6,3063.9,0.03263814]
[1764341282230,0.0992,3064.4,3063.8,9.79176186]
[1764341282432,0.40104701,3064.4,3063.9,0.03263814]
[1764341282659,0.30184701,3064.5,3063.9,0.03263814]
[1764341282856,0.30184701,3064.4,3064.0,6.52741514]
[1764341283060,0.361,3064.1,3063.8,3.26392062]
[1764341283356,0.361,3064.1,3063.8,6.52784124]
[1764341283357,0.4602,3064.1,3063.8,6.52784124]
[1764341283543,0.30184701,3064.0,3063.8,6.52784124]
[1764341285140,0.30184701,3064.0,3063.6,3.26404283]
[1764341285358,0.30184701,3063.9,3063.6,3.26404283]
[1764341285670,0.0992,3064.1,3063.6,3.26404283]
[1764341285671,0.30184701,3064.0,3063.6,3.26404283]
[1764341285962,0.30184701,3063.9,3063.7,0.03264027]
[1764341286144,0.0992,3064.1,3063.7,0.03264027]
[1764341286333,0.30184701,3064.0,3063.7,0.03264027]
[1764341286534,0.30184701,3063.9,3063.7,0.03264027]
[1764341286859,0.4683,3064.9,3063.7,0.03264027]
[1764341286860,0.30184701,3064.6,3063.8,0.619504]
[1764341287068,0.30419373,3065.1,3064.3,13.05355216]
[1764341287265,0.002,3065.1,3064.5,0.405504]
[1764341287643,0.002,3065.1,3064.7,0.405504]
[1764341287860,0.002,3065.1,3065.0,0.873504]
[1764341289361,0.002,3065.1,3065.0,4.13614674]
[1764341289748,0.002,3065.1,3065.0,3.26264274]
[1764341289954,0.363,3065.1,3065.0,3.26264274]
[1764341290152,0.002,3065.1,3065.0,3.26264274]
[1764341290571,0.002,3065.1,3065.0,3.93658184]
[1764341290870,0.002,3065.1,3065.0,3.66814674]
[1764341291764,0.002,3065.1,3064.9,3.26274828]
[1764341291765,0.4661,3065.1,3064.6,1.34509811]
[1764341291940,0.002,3065.1,3064.6,1.34509811]
[1764341292140,0.002,3065.1,3064.8,0.405504]
[1764341292973,0.002,3065.1,3064.7,0.405504]
[1764341293269,0.002,3065.1,3065.0,11.65133997]
[1764341293442,0.002,3065.1,3065.0,13.64643875]
[1764341293639,1e-08,3065.4,3065.3,1.069804]
[1764341293875,1e-08,3065.4,3065.3,1.283804]
[1764341294041,1e-08,3065.4,3065.3,1.741704]
[1764341294243,0.30164366,3066.6,3065.7,0.405504]
[1764341294449,0.30147481,3066.6,3065.7,0.875704]
[1764341294649,0.30147481,3066.6,3065.1,0.72559411]
[1764341294650,0.3299,3065.8,3065.1,0.72559411]
[1764341294868,0.3299,3065.8,3065.2,2.30889466]
[1764341295069,0.002,3065.8,3065.2,2.52289466]
[1764341295269,0.002,3065.8,3065.4,0.405504]
[1764341295642,0.4914,3065.7,3065.3,9.78697026]
[1764341296283,0.1012,3065.8,3065.3,9.78697026]
[1764341296768,0.002,3065.8,3065.3,9.78697026]
[1764341297377,0.002,3065.8,3065.3,3.26232342]
[1764341297674,0.4934,3065.8,3065.2,9.78728955]
[1764341297974,0.0012,3065.8,3065.7,0.4702]
[1764341298208,0.0012,3065.8,3065.7,0.6842]
[1764341298546,0.0012,3065.8,3065.4,0.405504]
[1764341298747,0.0012,3065.8,3065.4,0.619504]
[1764341298943,0.0012,3065.8,3065.4,0.405504]
[1764341299147,0.0012,3065.8,3065.3,0.97221734]
[1764341299347,0.0012,3065.8,3065.5,0.72559411]
[1764341299946,0.0012,3065.8,3065.7,1.61409811]
[1764341300179,0.0012,3065.8,3065.5,0.72559411]
[1764341300341,0.0012,3065.8,3065.7,1.102504]
[1764341300975,0.0012,3065.8,3065.4,9.786651]
[1764341301291,0.0012,3065.8,3065.0,9.78787823]
[1764341301292,0.4787,3065.8,3065.0,9.78787823]
[1764341301571,0.0012,3065.8,3065.1,0.51162536]
[1764341301774,0.0012,3065.8,3065.1,1.23721947]
[1764341302283,0.0012,3065.8,3065.2,0.405504]
[1764341302471,0.0012,3065.8,3065.3,0.03262323]
[1764341302679,0.0012,3065.8,3065.3,0.19689536]
[1764341302876,0.0012,3065.8,3065.4,0.405504]
[1764341303078,0.0012,3065.8,3065.5,0.0326211]
[1764341303276,0.0012,3065.8,3065.7,3.26189777]
[1764341303455,0.0012,3065.8,3065.7,4.18302074]
[1764341303660,0.0012,3065.8,3065.7,4.444523]
[1764341303870,0.0012,3065.8,3065.7,6.13211711]
[1764341304558,0.0012,3065.8,3065.7,6.34611711]
[1764341305162,0.0012,3065.8,3065.7,6.31349814]
[1764341306690,0.0012,3065.8,3065.7,6.09949814]
[1764341306989,0.0012,3065.8,3065.7,6.34611711]
[1764341308216,0.0012,3065.8,3065.7,6.31349814]
[1764341308392,0.4636,3065.8,3065.7,3.26189777]
[1764341308561,0.0012,3065.8,3065.7,3.26189777]
[1764341308758,0.0012,3065.8,3065.7,3.77751674]
[1764341308958,0.0012,3065.8,3065.7,4.25651674]
[1764341309193,0.0012,3065.8,3065.7,4.66202074]
[1764341309373,0.0012,3065.8,3065.7,6.18001714]
[1764341309964,0.0012,3065.8,3065.7,5.70101714]
[1764341310171,0.0012,3065.8,3065.7,6.18001714]
[1764341310595,0.1876,3067.5,3066.7,0.483]
[1764341310895,0.4775,3067.3,3066.6,0.405504]
[1764341311093,0.5336,3066.8,3066.1,0.214]
[1764341311297,0.5336,3066.8,3066.0,0.405504]
[1764341311298,0.0035,3066.6,3066.0,0.405504]
[1764341311467,0.481,3066.6,3066.0,0.214]
[1764341311778,0.481,3066.6,3066.1,0.72559411]
[1764341311973,0.3426,3066.1,3066.0,3.2615786]
[1764341312304,0.4775,3066.6,3066.0,6.5231572]
[1764341312466,0.346,3066.1,3066.0,3.2615786]
[1764341312985,0.0992,3066.4,3066.0,9.7847358]
[1764341313189,0.4775,3066.6,3066.0,6.5231572]
[1764341313190,0.0992,3066.5,3066.0,6.5231572]
[1764341313492,0.5767,3066.5,3066.0,3.2615786]
[1764341313699,0.0992,3066.6,3066.1,0.03261472]
[1764341313914,0.1876,3066.8,3065.9,0.405504]
[1764341314202,0.1876,3066.8,3066.0,0.03261578]
[1764341314203,0.4775,3066.7,3066.0,0.03261578]
[1764341314714,0.0992,3066.5,3066.1,0.03261472]
[1764341314910,0.0992,3066.5,3065.9,0.405504]
[1764341315114,0.5767,3066.5,3065.9,0.405504]
[1764341315284,0.5767,3066.5,3065.7,0.405504]
[1764341315482,0.4775,3066.5,3065.7,0.405504]
[1764341315702,0.0992,3066.3,3065.8,6.52358274]
[1764341316219,0.346,3065.9,3065.8,3.26179137]
[1764341316367,0.346,3065.9,3065.3,9.78697026]
[1764341316568,0.346,3065.9,3065.4,0.03262217]
[1764341317003,0.8222,3065.9,3065.4,0.03262217]
[1764341317409,0.346,3065.9,3065.4,0.03262217]
[1764341317712,0.8222,3065.9,3065.5,9.78633174]
[1764341318229,0.4762,3065.8,3065.5,6.52422116]
[1764341318392,0.0048,3065.6,3065.5,3.26211058]
[1764341318779,0.72559411,3066.7,3065.5,3.26211058]
[1764341318780,0.4775,3066.2,3065.5,9.78633174]
[1764341318974,0.0992,3066.0,3065.6,0.03262004]
[1764341319196,0.5767,3066.0,3065.6,0.03262004]
[1764341319374,0.0992,3066.3,3065.6,1.34073335]
[1764341319599,0.0992,3066.3,3065.7,9.78569331]
[1764341319800,0.0992,3066.3,3065.8,0.03261791]
[1764341320178,0.5767,3066.3,3065.8,0.03261791]
[1764341320374,0.0992,3066.3,3065.8,0.03261791]
[1764341320582,0.0992,3066.6,3065.9,1.34063774]
[1764341320795,0.6759,3066.8,3065.9,1.34063774]
[1764341321015,0.0992,3066.7,3065.9,1.34063774]
[1764341321226,0.0992,3066.7,3066.0,0.405504]
[1764341321384,0.1876,3067.5,3066.0,0.405504]
[1764341321385,0.4883,3067.2,3066.4,6.47862269]
[1764341321590,0.4883,3067.2,3066.5,0.405504]
[1764341321819,0.4883,3067.2,3066.6,9.78282135]
[1764341322116,0.4883,3067.2,3066.6,6.5218809]
[1764341322315,0.4875,3067.2,3066.6,9.78282135]
[1764341322476,0.4875,3067.2,3066.6,3.26094045]
[1764341322477,0.5867,3067.2,3066.6,3.26094045]
[1764341322674,0.3029512,3067.1,3066.6,3.26094045]
[1764341322913,0.5867,3067.2,3066.6,6.5218809]
[1764341322914,0.3029512,3067.0,3066.6,6.5218809]
[1764341323098,0.3029512,3066.9,3066.6,9.78282135]
[1764341323302,0.3029512,3066.8,3066.6,6.5218809]
[1764341323537,0.3029512,3066.7,3066.6,3.26094045]
[1764341323803,0.3029512,3066.7,3066.6,4.70670617]
[1764341324414,0.3029512,3066.7,3066.6,5.62110617]
[1764341324620,0.3029512,3066.7,3066.6,4.70670617]
[1764341325011,0.3029512,3066.7,3066.6,5.62110617]
[1764341325325,0.2868,3067.5,3066.7,0.405504]
[1764341325523,0.30272571,3067.4,3066.7,2.2933908]
[1764341325820,0.30272571,3067.3,3066.8,0.214]
[1764341326009,0.30272571,3067.2,3066.9,9.78186441]
[1764341326197,0.30272571,3067.1,3066.9,6.51832721]
[1764341326399,0.30272571,3067.0,3066.9,3.25770574]
[1764341326631,0.30272571,3067.4,3067.0,0.405504]
[1764341326845,0.002,3068.2,3067.2,7.45432669]
[1764341326992,0.002,3068.2,3067.8,0.405504]
[1764341327191,0.002,3068.2,3067.9,0.214]
[1764341327396,0.002,3068.2,3067.8,0.405504]
[1764341327397,0.002,3068.2,3067.3,6.93972269]
[1764341327593,0.002,3068.2,3067.4,1.78626627]
[1764341327832,0.002,3068.2,3067.4,2.51186038]
[1764341328134,0.002,3068.2,3067.6,0.405504]
[1764341328808,0.002,3068.2,3067.8,0.405504]
[1764341329629,0.002,3068.2,3068.1,7.52362669]
[1764341329839,0.002,3068.2,3068.1,8.48998936]
[1764341330040,0.002,3068.2,3068.1,11.74933553]
[1764341330355,0.002,3068.2,3068.1,3.87885017]
[1764341330997,0.7675,3068.2,3067.5,6.47862269]
[1764341331219,0.7675,3068.2,3067.6,7.13925884]
[1764341331426,0.002,3068.2,3067.6,13.65901368]
[1764341331828,0.002,3068.2,3067.6,13.44501368]
[1764341332030,0.002,3068.2,3067.6,16.66375895]
[1764341332233,0.002,3068.2,3067.8,0.405504]
[1764341332604,0.4903,3068.2,3067.7,0.405504]
[1764341333010,0.4903,3068.2,3067.6,3.25987742]
[1764341333254,0.2772,3067.7,3067.6,3.25987742]
[1764341333445,0.2772,3067.7,3067.2,0.03260302]
[1764341333629,0.4883,3067.8,3067.2,0.03260302]
[1764341333949,0.0992,3067.9,3067.3,3.26019626]
[1764341334143,0.4883,3067.8,3067.3,6.52039252]
[1764341335899,0.0992,3067.7,3067.3,6.52039252]
[1764341336342,0.1986,3068.1,3067.3,9.78058878]
[1764341336554,0.4883,3067.7,3067.3,6.52039252]
[1764341336705,0.4883,3067.7,3067.4,0.03260089]
[1764341337414,0.4883,3067.7,3067.3,6.52039252]
[1764341337829,0.5875,3067.7,3067.3,6.52039252]
[1764341338151,0.5875,3067.7,3067.3,6.47039252]
[1764341338809,0.5875,3067.7,3067.4,0.03260089]
[1764341338810,0.30143589,3067.6,3067.4,0.03260089]
[1764341339006,0.1986,3068.1,3067.4,0.03260089]
[1764341339007,0.6869,3068.1,3067.4,0.03260089]
[1764341339239,0.30144192,3068.0,3067.4,0.03260089]
[1764341339439,0.50004192,3068.1,3067.4,0.03260089]
[1764341340460,0.002,3068.2,3067.6,1.13109811]
[1764341340662,0.002,3068.2,3068.1,1.045004]
[1764341340820,0.002,3068.2,3068.1,0.405504]
[1764341341164,0.002,3068.2,3068.1,1.506104]
[1764341341632,0.002,3068.2,3068.1,1.045004]
[1764341341837,0.002,3068.2,3068.1,1.506104]
[1764341342052,0.002,3068.2,3068.1,2.32587667]
[1764341342251,0.002,3068.2,3068.1,5.58522284]
[1764341342760,0.002,3068.2,3068.1,6.31081695]
[1764341342985,0.30343833,3069.3,3069.2,0.405504]
[1764341343283,0.002,3069.3,3069.2,1.071804]
[1764341343570,0.002,3069.3,3069.2,2.09356667]
[1764341343867,0.002,3069.3,3069.2,0.405504]
[1764341344218,0.002,3069.3,3069.1,0.405504]
[1764341344659,0.002,3069.3,3068.7,9.77612667]
[1764341344832,0.002,3069.3,3069.0,0.405504]
[1764341345236,0.002,3069.3,3069.1,0.1862]
[1764341345446,0.002,3069.3,3069.2,0.405504]
[1764341346037,0.002,3069.3,3069.2,7.79852669]
[1764341346364,0.0012,3069.7,3069.5,0.405504]
[1764341346522,0.0012,3069.7,3069.6,7.6097208]
[1764341346726,0.0012,3069.7,3069.6,8.7371208]
[1764341346927,0.0012,3069.7,3069.6,0.618504]
[1764341347225,0.0012,3069.7,3069.6,1.071804]
[1764341347426,0.0012,3069.7,3069.6,0.405504]
[1764341347750,0.0012,3069.7,3069.4,6.51593144]
[1764341347751,0.4927,3069.7,3069.4,6.51593144]
[1764341347929,0.7667,3069.7,3069.4,6.51593144]
[1764341348272,0.4927,3069.7,3069.3,0.405504]
[1764341348459,0.0012,3069.7,3069.2,6.5163042]
[1764341348622,0.0012,3069.7,3069.3,0.405504]